bitfinex/quotes_BTCUSD_20250903
["timestamp","ask_amount","ask_price","bid_price","bid_amount"]
[1756883851478,1.7706769,110830.0,110820.0,0.00244696]
[1756883851682,1.81211705,110830.0,110820.0,0.00244696]
[1756883852534,1.81011705,110830.0,110820.0,0.00044696]
[1756883852732,1.65743705,110830.0,110820.0,0.00044696]
[1756883853002,1.7856931,110830.0,110820.0,0.00044696]
[1756883853172,1.7846931,110830.0,110820.0,0.00044696]
[1756883853521,1.7846931,110830.0,110820.0,0.00144696]
[1756883853751,1.6320131,110830.0,110820.0,0.00144696]
[1756883853941,1.7846931,110830.0,110820.0,0.00144696]
[1756883854158,1.7846931,110830.0,110820.0,0.00044696]
[1756883854573,1.7856931,110830.0,110820.0,0.00044696]
[1756883854786,1.6330131,110830.0,110820.0,0.00044696]
[1756883855022,1.7856931,110830.0,110820.0,0.00044696]
[1756883855488,1.81011705,110830.0,110820.0,0.00044696]
[1756883856125,1.65743705,110830.0,110820.0,0.00044696]
[1756883856339,1.81111705,110830.0,110820.0,0.00444696]
[1756883856761,1.65843705,110830.0,110820.0,0.00444696]
[1756883856942,1.81111705,110830.0,110820.0,0.00444696]
[1756883857149,0.93784093,110800.0,110790.0,0.1805217]
[1756883857363,1.09052093,110800.0,110790.0,0.20589263]
[1756883857584,0.75733552,110800.0,110790.0,0.20589263]
[1756883857797,0.93715017,110800.0,110790.0,0.20589263]
[1756883858056,1.11765558,110800.0,110790.0,0.20589263]
[1756883858293,1.11765558,110800.0,110790.0,0.02537093]
[1756883859131,1.11765558,110800.0,110790.0,0.02665093]
[1756883859540,1.11965558,110800.0,110790.0,0.02965093]
[1756883859746,1.11965558,110800.0,110790.0,0.02837093]
[1756883859992,1.12283558,110800.0,110790.0,0.00519093]
[1756883860756,0.96497558,110800.0,110790.0,0.00219093]
[1756883860939,1.15826109,110800.0,110790.0,0.00219093]
[1756883861141,1.16026109,110800.0,110790.0,0.00319093]
[1756883862559,1.16742257,110800.0,110790.0,0.00219093]
[1756883862768,1.17265257,110800.0,110790.0,0.00219093]
[1756883862981,1.17265257,110800.0,110790.0,0.00319093]
[1756883863223,1.17465257,110800.0,110790.0,0.00419093]
[1756883864374,1.17260257,110800.0,110790.0,0.00419093]
[1756883864585,1.16942257,110800.0,110790.0,0.00419093]
[1756883866375,1.17465257,110800.0,110790.0,0.00419093]
[1756883867757,1.17260257,110800.0,110790.0,0.00419093]
[1756883869105,1.17465257,110800.0,110790.0,0.00419093]
[1756883869573,1.17465257,110800.0,110790.0,0.00214093]
[1756883870192,1.01674257,110800.0,110790.0,0.00417093]
[1756883870355,1.16942257,110800.0,110790.0,0.00417093]
[1756883871506,1.39518027,110800.0,110790.0,0.00417093]
[1756883871738,1.39836027,110800.0,110790.0,0.00214093]
[1756883872408,1.39836027,110800.0,110790.0,0.00417093]
[1756883872409,1.39631027,110800.0,110790.0,0.00417093]
[1756883872618,1.39313027,110800.0,110790.0,0.00417093]
[1756883873307,1.35252476,110800.0,110790.0,0.00417093]
[1756883875059,0.53097613,110800.0,110790.0,0.20691145]
[1756883875321,1.19984476,110800.0,110790.0,0.20691145]
[1756883875454,1.19984476,110800.0,110790.0,0.20563145]
[1756883876095,0.55880154,110800.0,110790.0,0.20563145]
[1756883876347,1.19984476,110800.0,110790.0,0.20563145]
[1756883877237,1.35252476,110800.0,110790.0,0.20563145]
[1756883878318,1.19984476,110800.0,110790.0,0.20563145]
[1756883878531,0.37829613,110800.0,110790.0,0.20691145]
[1756883878747,0.69881774,110800.0,110790.0,0.20691145]
[1756883879570,0.37829613,110800.0,110790.0,0.20691145]
[1756883879769,0.69881774,110800.0,110790.0,0.20691145]
[1756883880260,0.36913465,110800.0,110790.0,0.20691145]
[1756883880467,0.02913465,110800.0,110790.0,0.20691145]
[1756883880617,0.02913465,110800.0,110790.0,0.22958145]
[1756883881256,0.34965626,110800.0,110790.0,0.35831145]
[1756883881453,0.53334167,110800.0,110790.0,0.20563145]
[1756883881703,0.85591328,110800.0,110790.0,0.20563145]
[1756883882075,0.85591328,110800.0,110790.0,0.02510975]
[1756883882300,1.00859328,110800.0,110790.0,0.02510975]
[1756883882524,1.00859328,110800.0,110790.0,0.02307975]
[1756883882725,1.00859328,110800.0,110790.0,0.20360145]
[1756883882936,0.50756626,110800.0,110790.0,0.20563145]
[1756883883144,0.34965626,110800.0,110790.0,0.20563145]
[1756883883314,0.68602167,110800.0,110790.0,0.20563145]
[1756883883520,0.68807167,110800.0,110790.0,0.20563145]
[1756883884294,1.00859328,110800.0,110790.0,0.20563145]
[1756883884522,0.68807167,110800.0,110790.0,0.20563145]
[1756883884751,1.00859328,110800.0,110790.0,0.20360145]
[1756883885653,0.34965626,110800.0,110790.0,0.20563145]
[1756883886495,0.67540787,110800.0,110790.0,0.20563145]
[1756883886704,1.00859328,110800.0,110790.0,0.02307975]
[1756883887159,1.34859328,110800.0,110790.0,0.00214093]
[1756883888514,1.34859328,110800.0,110790.0,0.18266263]
[1756883888764,1.38952818,110800.0,110790.0,0.18266263]
[1756883889205,0.70755006,110800.0,110790.0,0.18266263]
[1756883889417,1.34859328,110800.0,110790.0,0.00214093]
[1756883890036,1.34859328,110800.0,110790.0,0.18266263]
[1756883890475,1.34855328,110800.0,110790.0,0.18266263]
[1756883891029,1.34855328,110800.0,110790.0,0.00214093]
[1756883892095,1.34855328,110800.0,110790.0,0.18266263]
[1756883892330,1.01540787,110800.0,110790.0,0.20565145]
[1756883892530,1.34855328,110800.0,110790.0,0.20565145]
[1756883892734,1.34838328,110800.0,110790.0,0.20360145]
[1756883893283,0.70734006,110800.0,110790.0,0.20360145]
[1756883893456,1.34838328,110800.0,110790.0,0.20360145]
[1756883894511,0.70734006,110800.0,110790.0,0.20360145]
[1756883894711,1.34838328,110800.0,110790.0,0.20360145]
[1756883894913,1.34838328,110800.0,110790.0,0.00214093]
[1756883895581,1.19574328,110800.0,110790.0,0.00214093]
[1756883895780,1.34838328,110800.0,110790.0,0.00214093]
[1756883901640,1.82446088,110800.0,110790.0,0.00214093]
[1756883901851,1.55659454,110800.0,110790.0,0.00214093]
[1756883902469,1.55459454,110800.0,110790.0,0.00114093]
[1756883902883,1.55559454,110800.0,110790.0,0.00214093]
[1756883903112,1.40295454,110800.0,110790.0,0.00114093]
[1756883903298,1.55559454,110800.0,110790.0,0.00114093]
[1756883903709,1.59554125,110800.0,110790.0,0.00114093]
[1756883903915,1.91606286,110800.0,110790.0,0.00114093]
[1756883904535,1.59554125,110800.0,110790.0,0.00114093]
[1756883905165,1.59454125,110800.0,110790.0,0.00014093]
[1756883905363,1.59554125,110800.0,110790.0,0.00114093]
[1756883905581,1.44290125,110800.0,110790.0,0.00114093]
[1756883905783,1.91606286,110800.0,110790.0,0.00114093]
[1756883908457,1.98927039,110800.0,110790.0,0.00114093]
[1756883909019,1.76442286,110800.0,110790.0,0.00114093]
[1756883909168,1.91706286,110800.0,110790.0,0.00114093]
[1756883909425,1.91606286,110800.0,110790.0,0.00114093]
[1756883909946,1.91706286,110800.0,110790.0,0.00114093]
[1756883910216,1.86440759,110800.0,110790.0,0.00114093]
[1756883910883,1.54388598,110800.0,110790.0,0.00114093]
[1756883911989,1.39124598,110800.0,110790.0,0.00114093]
[1756883912636,1.54388598,110800.0,110790.0,0.00114093]
[1756883913262,0.90078276,110800.0,110790.0,0.00319093]
[1756883913483,0.82952883,110800.0,110790.0,0.00319093]
[1756883913706,1.16952883,110800.0,110790.0,0.00319093]
[1756883913923,1.17252883,110800.0,110790.0,0.00319093]
[1756883914390,0.54964006,110800.0,110790.0,0.00319093]
[1756883914634,1.12958212,110800.0,110790.0,0.00319093]
[1756883915314,1.13464212,110800.0,110790.0,0.00319093]
[1756883915503,1.13258212,110800.0,110790.0,0.00319093]
[1756883915747,1.12958212,110800.0,110790.0,0.00319093]
[1756883916167,1.13464212,110800.0,110790.0,0.00114093]
[1756883917858,1.69424201,110800.0,110790.0,0.00114093]
[1756883918075,1.74689728,110800.0,110790.0,0.00114093]
[1756883925182,1.7663077,110800.0,110790.0,0.00114093]
[1756883926632,1.77262783,110800.0,110790.0,0.00114093]
[1756883928049,1.74439651,110800.0,110790.0,0.00114093]
[1756883929518,1.81125118,110800.0,110790.0,1e-08]
[1756883929724,1.81125118,110800.0,110750.0,0.15916882]
[1756883929725,0.1895649,110780.0,110750.0,0.15916882]
[1756883929933,0.94787266,110760.0,110750.0,0.15916882]
[1756883930142,1.10051266,110760.0,110750.0,0.16120882]
[1756883930767,0.9750173,110760.0,110750.0,0.16120882]
[1756883930913,1.1276573,110760.0,110750.0,0.16120882]
[1756883931118,1.1296573,110760.0,110750.0,0.16267736]
[1756883931320,1.1296573,110760.0,110750.0,0.16395736]
[1756883931519,0.9770173,110760.0,110750.0,0.16395736]
[1756883931743,1.13852314,110760.0,110750.0,0.16395736]
[1756883932523,0.98588314,110760.0,110750.0,0.16267736]
[1756883932762,1.13852314,110760.0,110750.0,0.16267736]
[1756883932959,1.13852314,110760.0,110750.0,0.16395736]
[1756883933166,1.13852314,110760.0,110750.0,0.16495736]
[1756883933320,1.13852314,110760.0,110750.0,0.16367736]
[1756883933778,1.13852314,110760.0,110750.0,0.16267736]
[1756883934414,0.98588314,110760.0,110750.0,0.16567736]
[1756883934618,1.13852314,110760.0,110750.0,0.16567736]
[1756883937015,0.98588314,110760.0,110750.0,0.16567736]
[1756883937227,0.80531254,110760.0,110750.0,0.34626426]
[1756883937460,0.71122108,110760.0,110750.0,0.34754426]
[1756883937670,0.71122108,110760.0,110750.0,0.16695736]
[1756883937877,0.55858108,110760.0,110750.0,0.16567736]
[1756883938082,1.13852314,110760.0,110750.0,0.34626426]
[1756883938312,1.13852314,110760.0,110750.0,0.16567736]
[1756883938723,1.14167314,110760.0,110750.0,0.16567736]
[1756883940571,1.14368314,110760.0,110750.0,0.16363736]
[1756883940988,1.14368314,110760.0,110750.0,0.16567736]
[1756883941824,1.14368314,110760.0,110750.0,0.16363736]
[1756883942660,1.14368314,110760.0,110750.0,0.16567736]
[1756883942890,0.55858108,110760.0,110750.0,0.16567736]
[1756883943106,1.13852314,110760.0,110750.0,0.16567736]
[1756883943316,1.14368314,110760.0,110750.0,0.16567736]
[1756883943526,1.14167314,110760.0,110750.0,0.16567736]
[1756883944366,0.98903314,110760.0,110750.0,0.34626426]
[1756883944581,1.14368314,110760.0,110750.0,0.16567736]
[1756883945735,0.71122108,110760.0,110750.0,0.34626426]
[1756883945933,0.71122108,110760.0,110750.0,0.34754426]
[1756883946141,0.71122108,110760.0,110750.0,0.34626426]
[1756883946352,0.71122108,110760.0,110750.0,0.16567736]
[1756883946796,1.13852314,110760.0,110750.0,0.34626426]
[1756883947262,1.14368314,110760.0,110750.0,0.16567736]
[1756883947465,1.14167314,110760.0,110750.0,0.16567736]
[1756883947675,1.13852314,110760.0,110750.0,0.34626426]
[1756883948053,0.80531254,110760.0,110750.0,0.34626426]
[1756883948290,0.36914464,110760.0,110750.0,0.36848308]
[1756883948869,0.36914464,110760.0,110750.0,0.36720308]
[1756883949078,0.54971524,110760.0,110750.0,0.51984308]
[1756883949421,0.54971524,110760.0,110750.0,0.36720308]
[1756883949422,0.70235524,110760.0,110750.0,0.36720308]
[1756883949633,0.54971524,110760.0,110750.0,0.36720308]
[1756883949839,0.70235524,110760.0,110750.0,0.36720308]
[1756883951224,0.71129263,110760.0,110750.0,0.36720308]
[1756883952032,0.52178464,110760.0,110750.0,0.36720308]
[1756883952449,0.36914464,110760.0,110750.0,0.36720308]
[1756883953528,0.54971524,110760.0,110750.0,0.51984308]
[1756883953738,0.36914464,110760.0,110750.0,0.51984308]
[1756883955062,0.54971524,110760.0,110750.0,0.36720308]
[1756883955275,0.54971524,110760.0,110750.0,0.51984308]
[1756883955715,0.55482524,110760.0,110750.0,0.51984308]
[1756883956349,0.55281524,110760.0,110750.0,0.51984308]
[1756883957413,0.55482524,110760.0,110750.0,0.51984308]
[1756883957900,0.9821273,110760.0,110750.0,0.51984308]
[1756883958074,1.1347673,110760.0,110750.0,0.51984308]
[1756883958487,0.70545524,110760.0,110750.0,0.51984308]
[1756883958647,0.70746524,110760.0,110750.0,0.51984308]
[1756883960214,1.1347673,110760.0,110750.0,0.33717618]
[1756883960793,1.1347673,110760.0,110750.0,0.51776308]
[1756883961034,1.1347673,110760.0,110750.0,0.51981308]
[1756883961571,0.70746524,110760.0,110750.0,0.51981308]
[1756883961892,1.1347673,110760.0,110750.0,0.51981308]
[1756883963051,1.1347273,110760.0,110750.0,0.51981308]
[1756883964526,1.1347273,110760.0,110750.0,0.33717618]
[1756883965135,1.1347273,110760.0,110750.0,0.51776308]
[1756883965352,1.1347273,110760.0,110750.0,0.33717618]
[1756883965721,1.1347273,110760.0,110750.0,0.51776308]
[1756883966908,0.9541567,110760.0,110750.0,0.51981308]
[1756883967131,1.1347273,110760.0,110750.0,0.51776308]
[1756883968146,0.52685464,110760.0,110750.0,0.51981308]
[1756883968760,1.1347273,110760.0,110750.0,0.33717618]
[1756883969309,1.1347273,110760.0,110750.0,0.51776308]
[1756883969820,0.70742524,110760.0,110750.0,0.51776308]
[1756883970058,1.1347273,110760.0,110750.0,0.51776308]
[1756883970691,1.1347273,110760.0,110750.0,0.18457618]
[1756883970906,1.1347273,110760.0,110750.0,0.16363736]
[1756883971117,1.1347273,110760.0,110750.0,0.18457618]
[1756883973456,1.34892588,110760.0,110750.0,0.18457618]
[1756883973664,1.34892588,110760.0,110750.0,0.36516308]
[1756883974081,1.19632588,110760.0,110750.0,0.36516308]
[1756883974290,0.84760496,110760.0,110750.0,0.36516308]
[1756883974499,1.02817556,110760.0,110750.0,0.36516308]
[1756883974716,1.02817556,110760.0,110750.0,0.18457618]
[1756883976418,1.34892588,110760.0,110750.0,0.18457618]
[1756883986586,1.19632588,110760.0,110750.0,0.18457618]
[1756883986792,1.34888588,110760.0,110750.0,0.18457618]
[1756883987399,0.87557556,110760.0,110750.0,0.18457618]
[1756883987614,1.02813556,110760.0,110750.0,0.18457618]
[1756883987819,1.34888588,110760.0,110750.0,0.18457618]
[1756883991355,1.19632588,110760.0,110750.0,0.18655618]
[1756883991571,1.34888588,110760.0,110750.0,0.36714308]
[1756883992109,0.87557556,110760.0,110750.0,0.36714308]
[1756883992330,1.02813556,110760.0,110750.0,0.36714308]
[1756883993824,1.02813556,110760.0,110750.0,0.18655618]
[1756883994056,1.02813556,110760.0,110750.0,0.18457618]
[1756883994303,1.34888588,110760.0,110750.0,0.18457618]
[1756883997594,1.34888588,110760.0,110750.0,0.16363736]
[1756883997800,1.37685976,110760.0,110750.0,0.16363736]
[1756884000488,0.70734524,110760.0,110750.0,0.16363736]
[1756884000692,1.34884588,110760.0,110750.0,0.16363736]
[1756884004433,1.44076187,110760.0,110750.0,0.16363736]
[1756884008412,1.28824187,110760.0,110750.0,0.16363736]
[1756884008627,1.44076187,110760.0,110750.0,0.16363736]
[1756884010060,1.28824187,110760.0,110750.0,0.16363736]
[1756884010341,1.44076187,110760.0,110750.0,0.16363736]
[1756884011935,0.79926123,110760.0,110750.0,0.16363736]
[1756884012169,1.44076187,110760.0,110750.0,0.16363736]
[1756884012398,1.28824187,110760.0,110750.0,0.16363736]
[1756884012770,1.44072187,110760.0,110750.0,0.16363736]
[1756884014264,1.19632588,110760.0,110750.0,0.16363736]
[1756884014465,0.54971524,110760.0,110750.0,0.18662618]
[1756884014730,0.68294556,110760.0,110750.0,0.18662618]
[1756884014933,0.02914464,110760.0,110750.0,0.51969308]
[1756884015141,0.02914464,110760.0,110750.0,0.52097308]
[1756884016012,0.54971524,110760.0,110750.0,0.52097308]
[1756884016425,0.36914464,110760.0,110750.0,0.61288907]
[1756884016635,0.36914464,110760.0,110750.0,0.63642907]
[1756884017480,0.87046556,110760.0,110750.0,0.43102217]
[1756884017718,0.87569556,110760.0,110750.0,0.33910618]
[1756884018195,0.87569556,110760.0,110750.0,0.18662618]
[1756884018412,0.87569556,110760.0,110750.0,0.33705618]
[1756884018636,1.34892588,110760.0,110750.0,0.18457618]
[1756884018864,1.37689976,110760.0,110750.0,0.16363736]
[1756884024495,0.70742524,110760.0,110750.0,0.16363736]
[1756884024735,1.19644588,110760.0,110750.0,0.16363736]
[1756884024956,1.34888588,110760.0,110750.0,0.16363736]
[1756884026786,1.19644588,110760.0,110750.0,0.16568736]
[1756884027028,1.34365588,110760.0,110750.0,0.16568736]
[1756884027294,1.19121588,110760.0,110750.0,0.18662618]
[1756884027524,1.19121588,110760.0,110750.0,0.8416834]
[1756884027525,0.36914464,110760.0,110750.0,0.8416834]
[1756884027759,0.02914464,110760.0,110750.0,0.8416834]
[1756884027980,0.36914464,110760.0,110750.0,0.52093308]
[1756884028211,0.36914464,110760.0,110750.0,0.8416834]
[1756884028430,0.36914464,110760.0,110750.0,0.52093308]
[1756884029904,0.87046556,110760.0,110750.0,0.18662618]
[1756884030111,0.87046556,110760.0,110750.0,0.18457618]
[1756884030112,1.34888588,110760.0,110750.0,0.18457618]
[1756884030715,1.02290556,110760.0,110750.0,0.36721308]
[1756884032339,1.02813556,110760.0,110750.0,0.36721308]
[1756884032585,0.87569556,110760.0,110750.0,0.18457618]
[1756884033376,0.87569556,110760.0,110750.0,0.36721308]
[1756884033616,0.97731025,110760.0,110750.0,0.36721308]
[1756884034063,0.54971524,110760.0,110750.0,0.18662618]
[1756884034218,0.98254025,110760.0,110750.0,0.51965308]
[1756884034662,0.98039025,110760.0,110750.0,0.51965308]
[1756884035312,0.37222464,110760.0,110750.0,0.51965308]
[1756884035440,0.36914464,110760.0,110750.0,0.51965308]
[1756884036607,0.02914464,110760.0,110750.0,1.04044408]
[1756884036805,0.002,110760.0,110750.0,1.04044408]
[1756884037417,0.002,110760.0,110750.0,0.61284907]
[1756884040215,0.002,110760.0,110750.0,0.61156907]
[1756884040425,0.002,110760.0,110750.0,0.61152907]
[1756884042365,0.002,110760.0,110750.0,0.45912907]
[1756884042586,0.1878906,110760.0,110750.0,0.45707907]
[1756884042821,0.1878906,110760.0,110750.0,0.27649217]
[1756884043286,0.2150307,110760.0,110750.0,0.51756308]
[1756884043732,0.0344601,110760.0,110750.0,0.51951308]
[1756884043956,0.0291401,110760.0,110750.0,0.51951308]
[1756884044898,0.0312301,110760.0,110750.0,0.51951308]
[1756884045091,0.0291401,110760.0,110750.0,0.51951308]
[1756884051632,0.0291401,110760.0,110750.0,1.04030408]
[1756884052253,0.0291401,110760.0,110750.0,0.61270907]
[1756884052488,0.0291401,110760.0,110750.0,1.04030408]
[1756884052823,0.0291401,110760.0,110750.0,0.61270907]
[1756884053663,0.002,110760.0,110750.0,0.61270907]
[1756884053867,0.002,110760.0,110750.0,1.10394408]
[1756884054538,0.002,110760.0,110750.0,1.12871408]
[1756884054671,0.002,110760.0,110750.0,1.52871408]
[1756884058102,0.002,110760.0,110750.0,1.37631408]
[1756884058313,0.002,110760.0,110750.0,1.52867408]
[1756884058953,0.002,110760.0,110750.0,0.94743907]
[1756884059174,0.00732,110760.0,110750.0,0.89978025]
[1756884059393,0.00732,110760.0,110750.0,1.05214025]
[1756884059631,0.00732,110760.0,110750.0,1.07307907]
[1756884059861,0.00732,110760.0,110750.0,1.07502907]
[1756884060313,0.00732,110760.0,110750.0,0.67502907]
[1756884060753,0.00523,110760.0,110750.0,0.67502907]
[1756884061001,0.00523,110760.0,110750.0,1.10262408]
[1756884061215,0.00732,110760.0,110750.0,1.10262408]
[1756884061439,0.00732,110760.0,110750.0,0.67307907]
[1756884061649,0.00732,110760.0,110750.0,1.10067408]
[1756884062330,0.002,110760.0,110750.0,1.10262408]
[1756884062556,0.002,110760.0,110750.0,1.10390408]
[1756884062801,0.002,110760.0,110750.0,0.95154408]
[1756884063026,0.002,110760.0,110750.0,1.10258408]
[1756884064367,0.002,110760.0,110750.0,0.95026408]
[1756884064586,0.002,110760.0,110750.0,1.10258408]
[1756884064797,0.002,110760.0,110750.0,0.95026408]
[1756884065017,0.002,110760.0,110750.0,1.10258408]
[1756884065243,0.00409,110760.0,110750.0,0.67498907]
[1756884065470,0.00732,110760.0,110750.0,0.67303907]
[1756884065695,0.00732,110760.0,110750.0,0.52071907]
[1756884065915,0.00732,110760.0,110750.0,0.67303907]
[1756884066152,0.00732,110760.0,110750.0,0.52071907]
[1756884066382,0.03445868,110760.0,110750.0,0.67303907]
[1756884068407,0.02913868,110760.0,110750.0,1.10258408]
[1756884068866,0.02913868,110760.0,110750.0,0.67498907]
[1756884070783,0.02913868,110760.0,110750.0,1.10258408]
[1756884072469,0.03440868,110760.0,110750.0,1.10258408]
[1756884072919,0.03440868,110760.0,110750.0,0.67498907]
[1756884073126,0.02913868,110760.0,110750.0,0.67498907]
[1756884074358,0.03440868,110760.0,110750.0,0.67498907]
[1756884074965,0.02913868,110760.0,110750.0,1.10258408]
[1756884075599,0.02913868,110760.0,110750.0,0.67498907]
[1756884075600,0.03227868,110760.0,110750.0,0.67498907]
[1756884075801,0.03440868,110760.0,110750.0,0.67498907]
[1756884076007,0.03440868,110760.0,110750.0,0.67303907]
[1756884077277,0.03440868,110760.0,110750.0,0.67508907]
[1756884078473,0.02913868,110760.0,110750.0,0.67508907]
[1756884079269,0.002,110760.0,110750.0,1.10268408]
[1756884079683,0.00514,110760.0,110750.0,1.10268408]
[1756884081003,0.002,110760.0,110750.0,1.10268408]
[1756884089275,0.002,110760.0,110750.0,0.67508907]
[1756884089488,0.002,110760.0,110750.0,1.10268408]
[1756884091940,0.00727,110760.0,110750.0,0.67299907]
[1756884092358,0.00727,110760.0,110750.0,0.52071907]
[1756884092561,0.00727,110760.0,110750.0,0.67299907]
[1756884093209,0.43486501,110760.0,110750.0,0.67299907]
[1756884093419,0.00727,110760.0,110750.0,0.67299907]
[1756884094009,0.002,110760.0,110750.0,1.10264408]
[1756884094976,0.002,110760.0,110750.0,1.10392408]
[1756884095361,0.002,110760.0,110750.0,1.10264408]
[1756884095576,0.002,110760.0,110750.0,0.99559109]
[1756884095790,0.00727,110760.0,110750.0,0.67504907]
[1756884095990,0.002,110760.0,110750.0,0.99559109]
[1756884096452,0.002,110760.0,110750.0,0.67504907]
[1756884096665,0.00727,110760.0,110750.0,0.52071907]
[1756884096909,0.00727,110760.0,110750.0,0.99354109]
[1756884097321,0.002,110760.0,110750.0,0.99559109]
[1756884097790,0.00727,110760.0,110750.0,0.67504907]
[1756884098002,0.002,110760.0,110750.0,0.99559109]
[1756884101510,0.002,110760.0,110750.0,0.67632907]
[1756884101785,0.002,110760.0,110750.0,0.99559109]
[1756884102329,0.002,110760.0,110750.0,0.99687109]
[1756884102901,0.002,110760.0,110750.0,0.99559109]
[1756884104698,0.00705,110760.0,110750.0,0.99350109]
[1756884105124,0.00705,110760.0,110750.0,0.67295907]
[1756884105330,0.00705,110760.0,110750.0,0.99350109]
[1756884105569,0.002,110760.0,110750.0,0.99555109]
[1756884106410,0.00705,110760.0,110750.0,0.99350109]
[1756884106891,0.00507,110760.0,110750.0,0.99555109]
[1756884108432,0.00507,110760.0,110750.0,0.67500907]
[1756884108614,0.00705,110760.0,110750.0,0.67500907]
[1756884109022,0.002,110760.0,110750.0,0.67500907]
[1756884109223,0.00507,110760.0,110750.0,0.67500907]
[1756884110449,0.00705,110760.0,110750.0,0.67295907]
[1756884110888,0.00705,110760.0,110750.0,0.67500907]
[1756884111097,0.00705,110760.0,110750.0,0.67295907]
[1756884111328,0.32759202,110760.0,110750.0,0.67295907]
[1756884111511,0.00705,110760.0,110750.0,0.67500907]
[1756884111708,0.32759202,110760.0,110750.0,0.67500907]
[1756884112171,0.00705,110760.0,110750.0,0.67500907]
[1756884112380,0.002,110760.0,110750.0,0.67500907]
[1756884113349,0.002,110760.0,110750.0,0.99683109]
[1756884113575,0.002,110760.0,110750.0,0.99555109]
[1756884115920,0.002,110760.0,110750.0,0.67500907]
[1756884117103,0.00507,110760.0,110750.0,0.67500907]
[1756884117538,0.00507,110760.0,110750.0,0.99555109]
[1756884117752,0.002,110760.0,110750.0,0.99555109]
[1756884119807,0.32759202,110760.0,110750.0,0.52071907]
[1756884120016,0.32759202,110760.0,110750.0,0.67295907]
[1756884120223,0.32759202,110760.0,110750.0,0.52071907]
[1756884120474,0.64813404,110760.0,110750.0,0.45707907]
[1756884120693,0.64813404,110760.0,110750.0,0.60931907]
[1756884120904,0.32759202,110760.0,110750.0,0.60931907]
[1756884121978,0.00705,110760.0,110750.0,0.61136907]
[1756884123229,0.00705,110760.0,110750.0,0.60931907]
[1756884123644,0.32759202,110760.0,110750.0,0.60931907]
[1756884123856,0.32759202,110760.0,110750.0,0.61136907]
[1756884124056,0.32759202,110760.0,110750.0,0.60931907]
[1756884125977,0.32759202,110760.0,110750.0,0.67295907]
[1756884129406,0.32759202,110760.0,110750.0,0.67500907]
[1756884130759,0.32759202,110760.0,110750.0,0.67295907]
[1756884132252,0.1876206,110760.0,110750.0,0.42873217]
[1756884132491,1.52176355,110760.0,110750.0,0.16363736]
[1756884132704,1.54969539,110760.0,110750.0,0.16363736]
[1756884132840,1.57683917,110760.0,110750.0,0.16363736]
[1756884133044,0.61521311,110760.0,110750.0,0.16363736]
[1756884133250,1.25629715,110760.0,110750.0,0.16363736]
[1756884133445,0.58728127,110760.0,110750.0,0.16363736]
[1756884133652,1.22836531,110760.0,110750.0,0.16363736]
[1756884134683,1.70642733,110760.0,110750.0,0.16363736]
[1756884135097,1.38588531,110760.0,110750.0,0.16363736]
[1756884137007,1.70642733,110760.0,110750.0,0.16363736]
[1756884137619,1.79834332,110760.0,110750.0,0.16363736]
[1756884138277,1.64082332,110760.0,110750.0,0.16363736]
[1756884138507,1.79914332,110760.0,110750.0,0.16363736]
[1756884138936,1.81595995,110760.0,110750.0,0.16363736]
[1756884139139,1.79914332,110760.0,110750.0,0.16363736]
[1756884139980,1.76662643,110760.0,110750.0,0.16363736]
[1756884140207,1.76650643,110760.0,110750.0,0.16363736]
[1756884140420,1.60830643,110760.0,110750.0,0.16363736]
[1756884140643,1.76650643,110760.0,110750.0,0.16363736]
[1756884140879,0.71292438,110760.0,110750.0,0.16363736]
[1756884141093,1.35400842,110760.0,110750.0,0.16363736]
[1756884141530,1.39402651,110760.0,110750.0,0.16363736]
[1756884142427,1.71456853,110760.0,110750.0,0.16363736]
[1756884142652,1.55640853,110760.0,110750.0,0.16363736]
[1756884142862,1.74708542,110760.0,110750.0,0.16363736]
[1756884143070,1.83900141,110760.0,110750.0,0.16363736]
[1756884143742,1.83900141,110760.0,110750.0,0.15693943]
[1756884143743,1.9309174,110760.0,110750.0,0.15693943]
[1756884143996,1.9309174,110760.0,110750.0,0.12936943]
[1756884143997,2.27939126,110760.0,110750.0,0.12936943]
[1756884144217,2.96312845,110760.0,110750.0,0.12936943]
[1756884144904,1.03987633,110760.0,110750.0,0.12936943]
[1756884145119,2.8453584,110760.0,110750.0,0.12936943]
[1756884145335,2.8453584,110760.0,110750.0,0.12636943]
[1756884146062,2.8453584,110760.0,110750.0,0.12536943]
[1756884146063,1.6956405,110760.0,110750.0,0.12536943]
[1756884146309,1.8647205,110760.0,110750.0,0.12536943]
[1756884146515,1.8648005,110760.0,110750.0,0.12536943]
[1756884146726,1.83228361,110760.0,110750.0,0.12536943]
[1756884146947,1.83128361,110760.0,110750.0,0.12536943]
[1756884147185,1.8638005,110760.0,110750.0,0.12536943]
[1756884147403,1.8648005,110760.0,110750.0,0.12536943]
[1756884147653,2.93635205,110760.0,110750.0,0.12536943]
[1756884148258,0.58103563,110750.0,110740.0,0.00165092]
[1756884148627,1.30281262,110750.0,110740.0,0.00165092]
[1756884149064,1.47514262,110750.0,110740.0,0.00165092]
[1756884149287,1.44258573,110750.0,110740.0,0.00165092]
[1756884149494,1.44620564,110750.0,110740.0,0.00165092]
[1756884149705,1.44720564,110750.0,110740.0,0.00165092]
[1756884150598,0.20191561,110750.0,110740.0,0.00370092]
[1756884150856,0.50565854,110750.0,110740.0,0.00370092]
[1756884151346,0.84565854,110750.0,110740.0,0.00370092]
[1756884152039,0.85090854,110750.0,110740.0,0.00370092]
[1756884152726,0.84565854,110750.0,110740.0,0.00370092]
[1756884152939,0.52511652,110750.0,110740.0,0.00370092]
[1756884153377,0.84565854,110750.0,110740.0,0.00370092]
[1756884154029,0.84565854,110750.0,110740.0,0.02689728]
[1756884154460,0.85090854,110750.0,110740.0,0.02689728]
[1756884154699,0.84565854,110750.0,110740.0,0.02689728]
[1756884155125,0.85090854,110750.0,110740.0,0.02689728]
[1756884155341,0.85090854,110750.0,110740.0,0.19325728]
[1756884155551,0.95808357,110750.0,110740.0,0.19099974]
[1756884156402,0.95808357,110750.0,110740.0,0.19079974]
[1756884157299,0.95808357,110750.0,110740.0,0.18874974]
[1756884158466,0.53036652,110750.0,110740.0,0.18874974]
[1756884158668,0.95808357,110750.0,110740.0,0.18874974]
[1756884159467,0.95808357,110750.0,110740.0,0.02258974]
[1756884159691,0.99060046,110750.0,110740.0,0.00165092]
[1756884159921,1.00740998,110750.0,110740.0,0.00165092]
[1756884160360,0.97489309,110750.0,110740.0,0.00165092]
[1756884163747,0.54717604,110750.0,110740.0,0.00165092]
[1756884163950,0.54717604,110750.0,110740.0,0.00370092]
[1756884164158,0.97489309,110750.0,110740.0,0.00370092]
[1756884164789,0.96964309,110750.0,110740.0,0.00370092]
[1756884164995,0.97472309,110750.0,110740.0,0.00370092]
[1756884167924,0.97270309,110750.0,110740.0,0.09053728]
[1756884168157,0.00461991,110750.0,110740.0,0.36305648]
[1756884168382,0.00461991,110750.0,110740.0,0.38554894]
[1756884168612,0.001,110750.0,110740.0,0.38554894]